fUSD/lending_fUSD_20240617
["ID","MTS","AMOUNT","RATE_DAILY","PERIOD"]
[329719516,1718608187707,-22049.3639,0.000139,2]
[329719517,1718608187745,-2792.06293709,0.00013974,2]
[329719518,1718608187859,-1008.69237273,0.00013999,2]
[329719519,1718608187933,-110.69458743,0.00014,2]
[329719520,1718608193785,-10000.0,0.00014,2]
[329719521,1718608205078,-412.26,0.00013989,2]
[329719522,1718608205130,-300.0,0.00013999,2]
[329719523,1718608205412,-1287.74,0.00014,2]
[329719525,1718608233647,-1211.59692892,0.00013999,2]
[329719528,1718608233710,-2759.47331108,0.00014,2]
[329719529,1718608233724,-341.68853004,0.00014,2]
[329719530,1718608233742,-1072.14837001,0.00014,2]
[329719531,1718608233769,-9696.37754878,0.00014,2]
[329719532,1718608233792,-3174.90341628,0.00014,2]
[329719533,1718608233841,-1674.31627417,0.00014,2]
[329719534,1718608233861,-12906.77608952,0.00014,2]
[329719535,1718608234431,-19415.4891318,0.00014,2]
[329719536,1718608234486,-485.87781,0.00014,2]
[329719537,1718608234526,-150.0,0.00014,2]
[329719538,1718608234561,-150.0,0.00014,2]
[329719539,1718608234582,-150.0,0.00014,2]
[329719540,1718608234602,-150.0,0.00014,2]
[329719541,1718608234622,-150.0,0.00014,2]
[329719542,1718608234636,-150.0,0.00014,2]
[329719543,1718608234655,-150.0,0.00014,2]
[329719544,1718608234699,-150.0,0.00014,2]
[329719545,1718608234722,-150.0,0.00014,2]
[329719546,1718608234739,-150.0,0.00014,2]
[329719547,1718608234756,-150.0,0.00014,2]
[329719548,1718608234783,-150.0,0.00014,2]
[329719549,1718608234807,-150.0,0.00014,2]
[329719550,1718608234830,-155.79871172,0.00014,2]
[329719551,1718608234846,-182.47,0.00014127,2]
[329719552,1718608234923,-250.0,0.00014128,2]
[329719553,1718608234960,-170.76,0.00014263,2]
[329719554,1718608235022,-523.11,0.0001449,2]
[329719555,1718608235047,-1000.0,0.000148,2]
[329719556,1718608235079,-12588.85443324,0.000148,2]
[329719558,1718608235893,-760.55939495,0.000148,2]
[329719559,1718608235945,-18081.81267181,0.000148,2]
[329719560,1718608235968,-2119.082,0.000148,2]
[329719561,1718608236006,-197.37776569,0.00014832,2]
[329719562,1718608236064,-938.1,0.00014862,2]
[329719563,1718608236113,-150.99,0.00014862,2]
[329719564,1718608236167,-9999.99,0.00014862,2]
[329719565,1718608236241,-150.99,0.00014862,2]
[329719566,1718608236268,-178.84978198,0.000149,2]
[329719567,1718608236281,-1017.7966,0.000149,2]
[329719568,1718608236298,-31909.5644,0.000149,2]
[329719569,1718608236342,-6273.9594,0.000149,2]
[329719570,1718608236372,-6067.21886939,0.000149,2]
[329719571,1718608236463,-2407.76999996,0.000149,2]
[329719572,1718608236489,-4321.14263448,0.000149,2]
[329719573,1718608236506,-472.9257127,0.000149,2]
[329719574,1718608236574,-363.6,0.000149,2]
[329719575,1718608236593,-432.92,0.000149,2]
[329719576,1718608236616,-12547.90531229,0.000149,2]
[329719577,1718608237395,-570.09,0.000149,2]
[329719578,1718608237422,-250.33780553,0.000149,2]
[329719581,1718608239758,-14181.69517129,0.000149,2]
[329719582,1718608239814,-58384.39449436,0.000149,2]
[329719583,1718608239847,-488.11,0.00014931,2]
[329719584,1718608239887,-776.06,0.00014931,2]
[329719585,1718608239959,-419.27,0.00014931,2]
[329719586,1718608240008,-42581.0975905,0.00015,2]
[329719589,1718608244306,-1568.29552831,0.00015,2]
[329719600,1718608247130,-9754.37665561,0.00014,2]
[329719601,1718608247158,-399.70833916,0.00014,2]
[329719603,1718608247911,-6866.59633766,0.00014,2]
[329719604,1718608247954,-672.57,0.00014,2]
[329719605,1718608247975,-1163.68068873,0.00014,2]
[329719606,1718608248029,-603.45575644,0.00014,2]
[329719607,1718608248084,-910.60655848,0.00014,2]
[329719608,1718608248114,-10386.09884792,0.00014,2]
[329719609,1718608248151,-543.02349632,0.00014,2]
[329719610,1718608248208,-964.88331968,0.00014,2]
[329719611,1718608248252,-113.72137066,0.00014644,2]
[329719612,1718608248313,-305.51083809,0.00014644,2]
[329719613,1718608248329,-516.97933738,0.00015,2]
[329719614,1718608248344,-4040.26732107,0.00015,2]
[329719615,1718608248371,-166702.94046366,0.00015,2]
[329719616,1718608248391,-420.0,0.00015337,2]
[329719617,1718608248441,-170.62,0.00015362,2]
[329719618,1718608248505,-189.4,0.00015575,2]
[329719620,1718608248552,-813.0,0.00016212,2]
[329719622,1718608248570,-499.99,0.00016212,2]
[329719623,1718608248592,-412.26,0.00016253,2]
[329719624,1718608248631,-197.37776562,0.00016613,2]
[329719625,1718608248642,-488.11,0.00016798,2]
[329719626,1718608248665,-587.0,0.00016802,2]
[329719627,1718608248696,-178.27,0.00016879,2]
[329719628,1718608248716,-170.76,0.00017115,2]
[329719629,1718608248749,-219.65,0.00017151,3]
[329719630,1718608248776,-523.11,0.0001723,2]
[329719631,1718608248798,-546.46139874,0.00017243,2]
[329719632,1718608248809,-538.4252942,0.00017246,2]
[329719633,1718608248835,-26417.94481901,0.00017255,2]
[329719634,1718608248850,-3751.19809326,0.00017258,2]
[329719635,1718608248863,-4087.19329881,0.00017258,2]
[329719636,1718608248901,-248551.83750306,0.00017258,2]
[329719637,1718608248913,-262.34116318,0.000173,2]
[329719638,1718608248953,-2660.0,0.000174,2]
[329719639,1718608249016,-695.0,0.000176,2]
[329719640,1718608249052,-197.37776562,0.00018393,2]
[329719641,1718608249076,-823.0,0.00018408,2]
[329719642,1718608249091,-412.26,0.00018517,2]
[329719643,1718608249120,-488.11,0.00018664,2]
[329719644,1718608249135,-736.81225318,0.00018833,2]
[329719645,1718608249180,-485.87781,0.00019,2]
[329719646,1718608249218,-182.47,0.00019778,2]
[329719647,1718608249233,-523.11,0.0001997,2]
[329719648,1718608249264,-155.0,0.0002,2]
[329719649,1718608249362,-226.83513534,0.000201,2]
[329719650,1718608249390,-1152.0,0.00020167,2]
[329719651,1718608249446,-197.37776562,0.00020174,2]
[329719652,1718608249484,-488.11,0.00020531,2]
[329719653,1718608249497,-179.07959583,0.00020543,2]
[329719654,1718608249508,-412.26,0.00020781,2]
[329719655,1718608249536,-1250.0,0.00021,2]
[329719656,1718608249565,-1604.0,0.000218,5]
[329719657,1718608249585,-306.76,0.00021918,2]
[329719658,1718608249610,-250.0,0.00021918,2]
[329719659,1718608249621,-191.21,0.00021918,2]
[329719660,1718608249644,-197.37776562,0.00021955,2]
[329719661,1718608249660,-656.0,0.00022094,2]
[329719662,1718608249679,-262.34116318,0.00022295,2]
[329719663,1718608249690,-488.11,0.00022397,2]
[329719664,1718608249711,-412.26,0.00023045,2]
[329719665,1718608249722,-189.4,0.00023362,2]
[329719666,1718608249732,-197.37776562,0.00023736,2]
[329719667,1718608249746,-485.87781,0.00024,2]
[329719668,1718608249756,-5000.0,0.00024,2]
[329719669,1718608249770,-172.61,0.00024384,2]
[329719670,1718608249781,-415.04,0.00024384,2]
[329719671,1718608249821,-271.65,0.00024384,2]
[329719673,1718608249834,-752.83867739,0.00024656,2]
[329719676,1718608249848,-2369.60732579,0.00024799,2]
[329719677,1718608249866,-2369.60732579,0.00024799,2]
[329719679,1718608249883,-2369.60732579,0.00024799,2]
[329719681,1718608249895,-2369.60732579,0.00024799,2]
[329719683,1718608249916,-2369.60732579,0.00024799,2]
[329719685,1718608249931,-2369.60732579,0.00024799,2]
[329719687,1718608249944,-2369.60732579,0.00024799,2]
[329719688,1718608249970,-2369.60732579,0.00024799,2]
[329719691,1718608249991,-2500.0,0.000249,2]
[329719693,1718608250002,-6807.09530734,0.000249,2]
[329719695,1718608250041,-423.27,0.00024932,2]
[329719697,1718608250061,-300.0,0.00024932,2]
[329719699,1718608250073,-527.15,0.00024932,2]
[329719701,1718608250104,-353.95,0.00024932,2]
[329719703,1718608250116,-150.0,0.00024932,2]
[329719705,1718608250129,-152.0,0.00024979,3]
[329719707,1718608250142,-173.3439918,0.00025,2]
[329719709,1718608250171,-412.26,0.00025309,2]
[329719711,1718608250183,-197.37776562,0.00025516,2]
[329719713,1718608250197,-445.46,0.00025589,2]
[329719714,1718608250245,-150.0,0.00025753,2]
[329719716,1718608250267,-423.27,0.00025753,2]
[329719718,1718608250281,-527.15,0.00025753,2]
[329719719,1718608250300,-353.95,0.00025753,2]
[329719722,1718608250319,-423.27,0.00025753,2]
[329719724,1718608250337,-150.0,0.00025753,2]
[329719725,1718608250348,-527.15,0.00025753,2]
[329719727,1718608250359,-353.95,0.00025753,2]
[329719729,1718608250380,-150.0,0.00025753,2]
[329719731,1718608250401,-423.27,0.00025753,2]
[329719733,1718608250423,-251.9,0.00025753,2]
[329719735,1718608250452,-527.15,0.00025753,2]
[329719737,1718608250468,-423.27,0.00025753,2]
[329719739,1718608250479,-527.15,0.00025753,2]
[329719740,1718608250498,-150.0,0.00025753,2]
[329719741,1718608250512,-844.25,0.00025753,2]
[329719743,1718608250524,-527.15,0.00025753,2]
[329719745,1718608250545,-527.15,0.00025753,2]
[329719747,1718608250583,-527.15,0.00025753,2]
[329719749,1718608250595,-526.34,0.00025753,2]
[329719751,1718608250607,-155.67,0.00025863,2]
[329719753,1718608250626,-248.46,0.00025863,2]
[329719755,1718608250640,-150.0,0.00025863,2]
[329719757,1718608250667,-526.55,0.00025863,2]
[329719758,1718608250689,-2369.60732579,0.00025897,2]
[329719759,1718608250700,-4781.25528076,0.00026024,2]
[329719760,1718608250728,-162.18737293,0.0002608,2]
[329719761,1718608250768,-158.42682675,0.00026124,2]
[329719762,1718608250789,-172.02167345,0.00026142,2]
[329719763,1718608250828,-155.14585038,0.00026144,2]
[329719765,1718608250841,-172.07639288,0.00026148,2]
[329719767,1718608250857,-155.14585038,0.00026174,2]
[329719769,1718608250872,-166.66666666,0.00026208,2]
[329719771,1718608250896,-4781.25528076,0.00026259,2]
[329719772,1718608250920,-625.29760276,0.00026299,2]
[329719773,1718608250937,-319.0905119,0.00026349,2]
[329719774,1718608250948,-152.0,0.00026366,4]
[329719775,1718608250958,-2417.19973563,0.00026498,2]
[329719776,1718608250974,-166.66666666,0.00026624,2]
[329719778,1718608251001,-172.07639288,0.0002663,2]
[329719780,1718608251046,-2417.19973563,0.00026661,2]
[329719782,1718608251069,-152.44,0.00026685,2]
[329719783,1718608251079,-300.0,0.00026685,2]
[329719784,1718608251091,-527.15,0.00026685,2]
[329719785,1718608251103,-423.27,0.00026685,2]
[329719786,1718608251118,-303.8,0.00026685,2]
[329719787,1718608251129,-303.71,0.00026685,2]
[329719788,1718608251144,-163.63,0.00026685,2]
[329719789,1718608251157,-353.95,0.00026685,2]
[329719790,1718608251171,-154.87,0.00026685,2]
[329719791,1718608251184,-150.0,0.00026685,2]
[329719792,1718608251198,-164.44,0.00026685,2]
[329719793,1718608251210,-423.27,0.00026685,2]
[329719794,1718608251222,-527.15,0.00026685,2]
[329719795,1718608251233,-353.95,0.00026685,2]
[329719796,1718608251243,-150.0,0.00026685,2]
[329719797,1718608251256,-423.27,0.00026685,2]
[329719798,1718608251268,-150.0,0.00026685,2]
[329719799,1718608251279,-527.15,0.00026685,2]
[329719800,1718608251300,-164.44,0.00026685,2]
[329719801,1718608251314,-353.95,0.00026685,2]
[329719802,1718608251354,-353.95,0.00026685,2]
[329719803,1718608251399,-527.15,0.00026685,2]
[329719804,1718608251413,-164.44,0.00026685,2]
[329719805,1718608251442,-423.27,0.00026685,2]
[329719806,1718608251464,-150.0,0.00026685,2]
[329719807,1718608251478,-527.15,0.00026685,2]
[329719808,1718608251492,-150.0,0.00026685,2]
[329719809,1718608251510,-164.44,0.00026685,2]
[329719810,1718608251523,-353.22,0.00026685,2]
[329719811,1718608251536,-251.48,0.00026685,2]
[329719812,1718608251549,-562.23946195,0.00026711,2]
[329719813,1718608251563,-286.1445746,0.00026755,2]
[329719814,1718608251578,-286.1445746,0.00026768,2]
[329719815,1718608251595,-319.0905119,0.00026775,2]
[329719816,1718608251611,-286.1445746,0.00026778,2]
[329719817,1718608251638,-286.1445746,0.0002678,2]
[329719818,1718608251650,-286.1445746,0.00026789,2]
[329719819,1718608251678,-444.18979003,0.00026842,2]
[329719820,1718608251689,-1067.36402309,0.00026842,2]
[329719821,1718608251700,-1072.98557805,0.00026842,2]
[329719822,1718608251721,-562.23946195,0.00026878,2]
[329719823,1718608251733,-1018.0,0.000269,2]
[329719824,1718608251745,-678.57457315,0.000269,2]
[329719825,1718608251760,-10015.72,0.0002691,2]
[329719826,1718608251771,-160.98791585,0.00026986,2]
[329719827,1718608251789,-172.07639288,0.00026997,2]
[329719828,1718608251802,-173.03217871,0.00027016,2]
[329719829,1718608251864,-152.58898578,0.00027051,2]
[329719830,1718608251880,-319.0905119,0.00027077,2]
[329719831,1718608251891,-195.17966356,0.00027098,2]
[329719832,1718608251905,-628.17,0.00027123,8]
[329719833,1718608251918,-628.17,0.00027123,8]
[329719834,1718608251934,-4900.89,0.00027123,8]
[329719835,1718608251944,-4900.89,0.00027123,8]
[329719836,1718608251955,-4900.89,0.00027123,8]
[329719837,1718608251967,-160.50363344,0.00027154,2]
[329719838,1718608251996,-151.7122608,0.0002716,2]
[329719839,1718608252007,-500.0,0.00027165,2]
[329719840,1718608252021,-500.0,0.00027167,2]
[329719841,1718608252035,-200.0,0.00027167,2]
[329719842,1718608252047,-646.0,0.00027169,2]
[329719843,1718608252065,-500.0,0.00027169,2]
[329719844,1718608252100,-200.0,0.00027169,2]
[329719845,1718608252125,-166.66666666,0.00027169,2]
[329719846,1718608252138,-975.04504316,0.00027197,2]
[329719847,1718608252150,-16390.85358841,0.000272,2]
[329719848,1718608252175,-1160.39910338,0.000272,2]
[329719849,1718608252189,-166.66666666,0.00027204,2]
[329719850,1718608252204,-166.66666666,0.00027205,2]
[329719851,1718608252219,-1160.39910328,0.00027218,2]
[329719852,1718608252230,-1160.39910328,0.00027236,2]
[329719853,1718608252252,-1160.39910328,0.00027255,2]
[329719854,1718608252273,-800.0,0.0002726,2]
[329719855,1718608252285,-800.0,0.0002726,2]
[329719856,1718608252298,-800.0,0.0002726,2]
[329719857,1718608252312,-800.0,0.0002726,2]
[329719858,1718608252322,-800.0,0.0002726,2]
[329719859,1718608252335,-166.66666666,0.00027263,2]
[329719860,1718608252370,-171.56244532,0.00027264,2]
[329719861,1718608252420,-1160.39910328,0.00027273,2]
[329719862,1718608252449,-628.17,0.0002728,8]
[329719863,1718608252516,-500.0,0.00027282,2]
[329719864,1718608252546,-151.7122608,0.00027285,2]
[329719865,1718608252567,-179.38098978,0.0002729,2]
[329719866,1718608252584,-4900.89,0.0002729,8]
[329719867,1718608252602,-262.34116318,0.0002729,2]
[329719868,1718608252669,-1160.39910328,0.00027291,2]
[329719869,1718608252713,-500.0,0.00027291,2]
[329719870,1718608252747,-10000.0,0.00027294,2]
[329719871,1718608252831,-151.0,0.00027297,7]
[329719872,1718608252891,-158.541014,0.00027297,7]
[329719873,1718608252943,-151.0,0.00027297,7]
[329719874,1718608252968,-151.0,0.00027297,7]
[329719875,1718608252992,-394.223093,0.00027297,7]
[329719876,1718608253044,-151.0,0.00027297,7]
[329719877,1718608253097,-394.223093,0.00027297,7]
[329719878,1718608253115,-151.0,0.00027297,7]
[329719879,1718608253128,-151.0,0.00027297,7]
[329719880,1718608253209,-151.0,0.00027297,7]
[329719881,1718608253242,-151.0,0.00027297,7]
[329719882,1718608253288,-152.889192,0.00027297,7]
[329719883,1718608253331,-151.0,0.00027297,7]
[329719884,1718608253357,-151.0,0.00027297,7]
[329719885,1718608253384,-152.451533,0.00027297,7]
[329719886,1718608253404,-151.0,0.00027297,7]
[329719887,1718608253432,-151.0,0.00027297,7]
[329719888,1718608253496,-151.0,0.00027297,7]
[329719889,1718608253512,-153.342797,0.00027297,7]
[329719890,1718608253560,-151.0,0.00027297,7]
[329719891,1718608253574,-321.783792,0.00027297,7]
[329719892,1718608253586,-321.783792,0.00027297,7]
[329719893,1718608253608,-295.007792,0.00027297,7]
[329719894,1718608253622,-163.461004,0.00027297,7]
[329719895,1718608253641,-151.680931,0.00027297,7]
[329719896,1718608253655,-151.0,0.00027297,7]
[329719897,1718608253671,-201.013942,0.00027297,7]
[329719898,1718608253694,-151.0,0.00027297,7]
[329719899,1718608253706,-151.0,0.00027297,7]
[329719900,1718608253723,-151.0,0.00027297,7]
[329719901,1718608253738,-151.0,0.00027297,7]
[329719902,1718608253757,-151.0,0.00027297,7]
[329719903,1718608253770,-151.0,0.00027297,7]
[329719904,1718608253791,-151.0,0.00027297,7]
[329719905,1718608253805,-151.0,0.00027297,7]
[329719906,1718608253824,-151.0,0.00027297,7]
[329719907,1718608253875,-596.356119,0.00027297,7]
[329719908,1718608253888,-151.0,0.00027297,3]
[329719909,1718608253904,-596.356119,0.00027297,7]
[329719910,1718608253920,-151.0,0.00027297,3]
[329719911,1718608253950,-151.0,0.00027297,7]
[329719912,1718608253963,-151.0,0.00027297,7]
[329719913,1718608253996,-367.258196,0.00027297,7]
[329719914,1718608254022,-367.258196,0.00027297,7]
[329719915,1718608254049,-151.0,0.00027297,7]
[329719916,1718608254061,-151.0,0.00027297,7]
[329719917,1718608254082,-151.0,0.00027297,7]
[329719918,1718608254101,-151.0,0.00027297,7]
[329719919,1718608254127,-184.911626,0.00027297,7]
[329719920,1718608254145,-151.0,0.00027297,7]
[329719921,1718608254171,-151.0,0.00027297,7]
[329719922,1718608254190,-151.0,0.00027297,7]
[329719923,1718608254208,-155.127049,0.00027297,7]
[329719924,1718608254225,-151.0,0.00027297,7]
[329719925,1718608254251,-782.243322,0.00027297,7]
[329719926,1718608254273,-153.957275,0.00027297,7]
[329719927,1718608254290,-153.280353,0.00027297,7]
[329719928,1718608254322,-782.243322,0.00027297,7]
[329719929,1718608254355,-151.0,0.00027297,7]
[329719930,1718608254408,-151.0,0.00027297,7]
[329719931,1718608254431,-155.14137,0.00027297,7]
[329719932,1718608254447,-200.292062,0.00027297,7]
[329719933,1718608254462,-613.432444,0.00027297,7]
[329719934,1718608254493,-613.432444,0.00027297,7]
[329719935,1718608254530,-158.001699,0.00027297,7]
[329719936,1718608254543,-277.576903,0.00027297,7]
[329719937,1718608254557,-151.0,0.00027297,7]
[329719938,1718608254574,-277.576903,0.00027297,7]
[329719939,1718608254587,-151.0,0.00027297,7]
[329719940,1718608254600,-285.26756,0.00027297,7]
[329719941,1718608254618,-285.26756,0.00027297,7]
[329719942,1718608254631,-263.7948866,0.00027297,2]
[329719943,1718608254654,-8201.7548003,0.00027297,2]
[329719944,1718608254681,-197.37776562,0.00027297,2]
[329719945,1718608254721,-2369.60732579,0.00027297,2]
[329719946,1718608254741,-171.56244531,0.00027297,2]
[329719947,1718608254775,-188.54395548,0.00027297,2]
[329719948,1718608254825,-151.0,0.00027297,7]
[329719949,1718608254872,-4090.439835,0.00027297,7]
[329719950,1718608254887,-151.0,0.00027297,7]
[329719951,1718608254903,-4090.439835,0.00027297,7]
[329719952,1718608254923,-500.0,0.000273,2]
[329719953,1718608254945,-500.0,0.000273,2]
[329719954,1718608254960,-32390.42404686,0.000273,2]
[329719955,1718608254973,-151.0,0.000273,7]
[329719956,1718608255026,-151.0,0.000273,7]
[329719957,1718608255053,-151.409888,0.000273,7]
[329719958,1718608255064,-151.0,0.000273,7]
[329719959,1718608255085,-207.434169,0.000273,7]
[329719960,1718608255101,-276.056939,0.000273,7]
[329719961,1718608255114,-151.0,0.000273,7]
[329719962,1718608255128,-151.0,0.000273,7]
[329719963,1718608255174,-151.0,0.000273,7]
[329719964,1718608255220,-332.41922846,0.000273,2]
[329719965,1718608255237,-177.43151722,0.000273,2]
[329719966,1718608255248,-1005.92,0.000273,2]
[329719967,1718608255269,-4434.77132485,0.000273,2]
[329719968,1718608255281,-151.0,0.000273,7]
[329719969,1718608255294,-307.62,0.000273,2]
[329719970,1718608255306,-489.389434,0.000273,7]
[329719971,1718608255321,-153.311669,0.000273,7]
[329719972,1718608255336,-489.389434,0.000273,7]
[329719973,1718608255350,-151.0,0.000273,7]
[329719974,1718608255367,-151.0,0.000273,7]
[329719975,1718608255383,-151.0,0.000273,7]
[329719976,1718608255409,-444.18979003,0.00027303,2]
[329719977,1718608255436,-1160.39910328,0.00027309,2]
[329719978,1718608255474,-158.42682675,0.00027324,2]
[329719979,1718608255486,-1160.39910328,0.00027327,2]
[329719980,1718608255499,-1160.39910328,0.00027345,2]
[329719981,1718608255524,-254.36514814,0.00027348,14]
[329719982,1718608255540,-9846.84,0.00027355,2]
[329719983,1718608255596,-1160.39910328,0.00027364,2]
[329719984,1718608255609,-152.58898578,0.00027368,2]
[329719985,1718608255622,-4616.24077475,0.0002737,2]
[329719986,1718608255654,-1160.39910328,0.00027382,2]
[329719987,1718608255672,-172.07639288,0.00027385,2]
[329719988,1718608255685,-628.17,0.00027389,8]
[329719989,1718608255726,-4900.89,0.00027389,8]
[329719990,1718608255737,-132064.43614243,0.0002739,5]
[329719991,1718608255760,-505.53116172,0.0002739,5]
[329719992,1718608255774,-712.08271485,0.0002739,5]
[329719993,1718608255808,-2068.59902885,0.0002739,5]
[329719994,1718608255823,-1025.93346629,0.0002739,5]
[329719995,1718608255857,-2084.0327375,0.0002739,5]
[329719996,1718608255884,-2158.98320904,0.0002739,5]
[329719997,1718608257083,-103681.91217482,0.0002739,5]
[329719998,1718608257095,-239.44473157,0.0002739,2]
[329719999,1718608257112,-747.35267125,0.0002739,7]
[329720000,1718608257128,-155.335495,0.0002739,7]
[329720001,1718608257152,-151.0,0.0002739,7]
[329720002,1718608257188,-151.0,0.0002739,7]
[329720003,1718608257213,-151.0,0.0002739,7]
[329720004,1718608257224,-243.626236,0.0002739,7]
[329720005,1718608257269,-151.0,0.0002739,7]
[329720006,1718608257302,-154.76061,0.0002739,7]
[329720007,1718608257346,-151.0,0.0002739,7]
[329720008,1718608257374,-151.0,0.0002739,7]
[329720009,1718608257385,-394.223093,0.0002739,7]
[329720010,1718608257396,-394.223093,0.0002739,7]
[329720011,1718608257423,-151.0,0.0002739,7]
[329720012,1718608257448,-151.0,0.0002739,7]
[329720013,1718608257470,-151.0,0.0002739,7]
[329720014,1718608257488,-151.0,0.0002739,7]
[329720015,1718608257500,-151.0,0.0002739,7]
[329720016,1718608257562,-151.0,0.0002739,7]
[329720017,1718608257573,-321.783792,0.0002739,7]
[329720018,1718608257584,-321.783792,0.0002739,7]
[329720019,1718608257604,-151.0,0.0002739,7]
[329720020,1718608257615,-151.0,0.0002739,7]
[329720021,1718608257625,-151.0,0.0002739,7]
[329720022,1718608257637,-153.83669,0.0002739,7]
[329720023,1718608257648,-155.932838,0.0002739,7]
[329720024,1718608257675,-155.035502,0.0002739,7]
[329720025,1718608257687,-151.0,0.0002739,7]
[329720026,1718608257697,-151.0,0.0002739,7]
[329720027,1718608257719,-596.356119,0.0002739,7]
[329720028,1718608257747,-151.0,0.0002739,3]
[329720029,1718608257772,-596.356119,0.0002739,7]
[329720030,1718608257844,-151.0,0.0002739,3]
[329720031,1718608257857,-151.0,0.0002739,7]
[329720032,1718608257900,-367.258196,0.0002739,7]
[329720033,1718608257913,-367.258196,0.0002739,7]
[329720034,1718608257956,-151.0,0.0002739,7]
[329720035,1718608257968,-151.0,0.0002739,7]
[329720036,1718608258003,-151.0,0.0002739,7]
[329720037,1718608258040,-151.0,0.0002739,7]
[329720038,1718608258062,-151.0,0.0002739,7]
[329720039,1718608258085,-151.0,0.0002739,7]
[329720040,1718608258104,-782.243322,0.0002739,7]
[329720041,1718608258139,-782.243322,0.0002739,7]
[329720042,1718608258154,-151.0,0.0002739,7]
[329720043,1718608258170,-164.800047,0.0002739,7]
[329720044,1718608258184,-613.432444,0.0002739,7]
[329720045,1718608258198,-613.432444,0.0002739,7]
[329720046,1718608258226,-277.576903,0.0002739,7]
[329720047,1718608258267,-151.0,0.0002739,7]
[329720048,1718608258298,-277.576903,0.0002739,7]
[329720049,1718608258322,-151.0,0.0002739,7]
[329720050,1718608258343,-285.26756,0.0002739,7]
[329720051,1718608258362,-285.26756,0.0002739,7]
[329720052,1718608258403,-151.0,0.0002739,7]
[329720053,1718608258421,-489.389434,0.0002739,7]
[329720054,1718608258459,-489.389434,0.0002739,7]
[329720055,1718608258470,-151.0,0.0002739,7]
[329720056,1718608258484,-154.397483,0.0002739,7]
[329720057,1718608258495,-151.0,0.0002739,7]
[329720058,1718608258539,-4090.439835,0.0002739,7]
[329720059,1718608258577,-151.0,0.0002739,7]
[329720060,1718608258625,-4090.439835,0.0002739,7]
[329720061,1718608258636,-500.0,0.00027391,2]
[329720062,1718608258670,-150.25,0.00027392,2]
[329720063,1718608258741,-156.80934953,0.00027392,2]
[329720064,1718608258754,-500.0,0.00027392,2]
[329720065,1718608258766,-500.0,0.00027392,2]
[329720066,1718608258777,-628.17,0.00027393,8]
[329720067,1718608258794,-4900.89,0.00027393,8]
[329720068,1718608258808,-151.0,0.00027394,7]
[329720069,1718608258830,-158.591012,0.00027394,7]
[329720070,1718608258845,-154.752749,0.00027394,7]
[329720071,1718608258860,-293.211514,0.00027394,7]
[329720072,1718608258873,-151.0,0.00027394,7]
[329720073,1718608258886,-394.223093,0.00027394,7]
[329720074,1718608258932,-394.223093,0.00027394,7]
[329720075,1718608258956,-151.0,0.00027394,7]
[329720076,1718608258973,-151.0,0.00027394,7]
[329720077,1718608259017,-151.0,0.00027394,7]
[329720078,1718608259047,-151.0,0.00027394,7]
[329720079,1718608259067,-151.0,0.00027394,7]
[329720080,1718608259096,-321.783792,0.00027394,7]
[329720081,1718608259112,-321.783792,0.00027394,7]
[329720082,1718608259141,-151.0,0.00027394,7]
[329720083,1718608259176,-151.0,0.00027394,7]
[329720084,1718608259231,-151.0,0.00027394,7]